bitfinex/quotes_BTCUSD_20240821
["timestamp","ask_amount","ask_price","bid_price","bid_amount"]
[1724241661542,0.02736777,59462.0,59461.0,0.13888498]
[1724241661779,0.02836777,59462.0,59461.0,0.14688498]
[1724241662513,0.02736777,59462.0,59461.0,0.14688498]
[1724241663037,0.02836777,59462.0,59461.0,0.15488498]
[1724241664279,0.02836777,59462.0,59461.0,0.24348498]
[1724241664760,0.02836777,59462.0,59461.0,0.40748796]
[1724241665241,0.02836777,59462.0,59461.0,0.62298796]
[1724241667685,0.02836777,59462.0,59461.0,0.40748796]
[1724241669473,0.02836777,59462.0,59461.0,0.24348498]
[1724241671969,0.02918977,59462.0,59461.0,0.24348498]
[1724241677976,0.02918977,59462.0,59461.0,0.04168498]
[1724241679435,0.02918977,59462.0,59461.0,0.16188498]
[1724241680284,0.02918977,59462.0,59461.0,0.25238498]
[1724241684275,0.02918977,59462.0,59461.0,0.41638796]
[1724241692431,0.02918977,59462.0,59461.0,0.04168498]
[1724241696323,0.02918977,59462.0,59461.0,0.09191967]
[1724241697378,0.02918977,59462.0,59461.0,0.11703702]
[1724241697795,0.02918977,59462.0,59461.0,0.11725607]
[1724241698209,0.02918977,59462.0,59461.0,0.78600833]
[1724241698436,0.02918977,59462.0,59461.0,1.12746015]
[1724241698650,0.002822,59462.0,59461.0,1.00150833]
[1724241699069,1e-08,59462.0,59461.0,1.00150833]
[1724241699288,1e-08,59462.0,59461.0,1.15262649]
[1724241699512,1e-08,59462.0,59461.0,1.15266984]
[1724241699991,1e-08,59462.0,59461.0,1.00145783]
[1724241700686,1e-08,59462.0,59461.0,0.78595783]
[1724241700910,0.02636256,59462.0,59461.0,0.78595783]
[1724241701137,0.02636256,59462.0,59461.0,0.93722686]
[1724241701610,0.02636256,59462.0,59461.0,0.78595783]
[1724241701814,1e-08,59462.0,59461.0,0.78595783]
[1724241702484,1e-08,59462.0,59461.0,0.78594727]
[1724241707157,1e-08,59462.0,59461.0,0.78595893]
[1724241708603,1e-08,59462.0,59461.0,0.78695893]
[1724241709013,1e-08,59462.0,59461.0,0.78595893]
[1724241709693,1e-08,59462.0,59461.0,0.78895893]
[1724241709845,1e-08,59462.0,59461.0,0.78595893]
[1724241710258,1e-08,59462.0,59461.0,0.78695893]
[1724241711089,1e-08,59462.0,59461.0,0.78895893]
[1724241711703,1e-08,59462.0,59461.0,0.78894815]
[1724241713357,1e-08,59462.0,59461.0,1.01029102]
[1724241713996,0.02636283,59469.0,59468.0,0.2454]
[1724241714197,0.02636283,59469.0,59468.0,0.78226317]
[1724241714407,0.02636283,59469.0,59468.0,0.80802164]
[1724241715435,0.02736283,59469.0,59468.0,0.81602164]
[1724241715838,0.02836283,59469.0,59468.0,0.82502164]
[1724241717508,0.02836283,59469.0,59468.0,0.7056307]
[1724241717712,0.02836283,59469.0,59468.0,0.57962164]
[1724241718124,0.02836283,59469.0,59468.0,0.11837102]
[1724241718324,0.02836283,59469.0,59468.0,0.11837148]
[1724241718547,0.02836283,59469.0,59468.0,0.09316714]
[1724241718742,0.02836283,59469.0,59468.0,0.04275847]
[1724241722907,0.02836283,59469.0,59468.0,0.15345847]
[1724241723827,0.02836283,59469.0,59468.0,0.52635068]
[1724241724249,0.02836283,59469.0,59468.0,0.62717077]
[1724241726326,0.02836283,59469.0,59468.0,0.52635068]
[1724241726946,0.02836283,59469.0,59468.0,0.62718394]
[1724241727166,0.02836283,59469.0,59468.0,0.52635068]
[1724241728942,0.02836283,59469.0,59468.0,0.52633304]
[1724241729349,0.02836283,59469.0,59468.0,0.78093602]
[1724241729563,0.02836283,59469.0,59468.0,0.90698731]
[1724241730817,0.02918483,59469.0,59468.0,0.90698731]
[1724241732167,0.02918483,59469.0,59468.0,0.90672731]
[1724241732419,0.02918483,59469.0,59468.0,0.78067602]
[1724241733177,0.02918483,59469.0,59468.0,0.57937602]
[1724241734243,0.02918483,59469.0,59468.0,0.57937602]
[1724241735440,0.02918483,59469.0,59468.0,0.66907602]
[1724241738028,0.02918483,59469.0,59468.0,0.41537304]
[1724241738029,0.85214783,59469.0,59468.0,0.41537304]
[1724241738242,0.85214783,59469.0,59462.0,0.00020244]
[1724241738243,0.504514,59463.0,59462.0,0.05062584]
[1724241738463,0.504514,59463.0,59462.0,0.00020244]
[1724241738464,1.57490298,59463.0,59462.0,0.00020244]
[1724241738739,1.67490298,59463.0,59462.0,0.00020244]
[1724241738996,1.7012737,59463.0,59462.0,0.00020244]
[1724241739191,1.7054737,59463.0,59462.0,0.00020244]
[1724241739605,1.7164737,59463.0,59462.0,0.00120244]
[1724241739812,1.7284737,59463.0,59462.0,0.00220244]
[1724241740028,1.7174737,59463.0,59462.0,0.00120244]
[1724241740447,1.7284737,59463.0,59462.0,0.00220244]
[1724241740655,1.62276451,59463.0,59462.0,0.00220244]
[1724241741072,1.6110737,59463.0,59462.0,0.00220244]
[1724241743259,1.6110737,59463.0,59462.0,0.00310664]
[1724241747828,1.6110737,59463.0,59462.0,0.0029042]
[1724241754330,1.61087131,59463.0,59462.0,0.0029042]
[1724241756017,0.31754172,59463.0,59462.0,0.0029042]
[1724241756225,0.14937072,59463.0,59462.0,0.0029042]
[1724241756433,0.14937072,59463.0,59462.0,0.02358821]
[1724241756882,0.14937072,59463.0,59462.0,0.0019042]
[1724241756883,0.13737072,59463.0,59462.0,0.0019042]
[1724241757297,0.31354172,59463.0,59462.0,0.0029042]
[1724241757718,0.13437072,59463.0,59462.0,0.0019042]
[1724241757935,0.30254172,59463.0,59462.0,0.0019042]
[1724241758194,0.31154172,59463.0,59462.0,0.0029042]
[1724241759259,0.64788472,59463.0,59462.0,0.0029042]
[1724241762298,0.14337072,59463.0,59462.0,0.0029042]
[1724241762513,0.04337072,59463.0,59462.0,0.02361795]
[1724241762929,0.04337072,59463.0,59462.0,0.0029042]
[1724241763145,0.21154172,59463.0,59462.0,0.0029042]
[1724241764181,0.21154172,59463.0,59462.0,0.2146042]
[1724241764596,0.04337072,59463.0,59462.0,0.2146042]
[1724241764807,0.04337072,59463.0,59462.0,0.23531795]
[1724241765671,0.02637072,59463.0,59462.0,0.23331795]
[1724241765879,0.02937072,59463.0,59462.0,0.23331795]
[1724241766337,0.02637072,59463.0,59462.0,0.23331795]
[1724241766560,0.02637072,59463.0,59462.0,0.23831795]
[1724241766762,0.02637072,59463.0,59462.0,0.23331795]
[1724241767213,0.03237072,59463.0,59462.0,0.24131795]
[1724241767627,0.02737072,59463.0,59462.0,0.24131795]
[1724241768036,0.02837072,59463.0,59462.0,0.24731795]
[1724241780259,0.02837072,59463.0,59462.0,0.41468416]
[1724241780471,0.02837072,59463.0,59462.0,0.46160667]
[1724241780472,0.002,59463.0,59462.0,0.46160667]
[1724241780680,0.002,59463.0,59462.0,0.48674954]
[1724241780944,0.002,59463.0,59462.0,0.41132093]
[1724241782739,0.002,59463.0,59462.0,0.46161418]
[1724241783181,0.002,59463.0,59462.0,0.41132093]
[1724241783437,0.002,59463.0,59462.0,0.46162053]
[1724241784725,0.002,59463.0,59462.0,0.41132093]
[1724241790577,0.002822,59463.0,59462.0,0.41132093]
[1724241794466,0.002822,59463.0,59462.0,0.52872093]
[1724241795243,0.002822,59463.0,59462.0,0.57901264]
[1724241795743,0.002822,59463.0,59462.0,0.46161264]
[1724241795996,0.002822,59463.0,59462.0,0.03561795]
[1724241796433,0.092722,59463.0,59462.0,0.03561795]
[1724241796670,0.379093,59463.0,59462.0,0.03561795]
[1724241796921,0.210922,59463.0,59462.0,0.03561795]
[1724241797445,0.209922,59463.0,59462.0,0.02961795]
[1724241797682,0.208922,59463.0,59462.0,0.02261795]
[1724241799636,0.377093,59463.0,59462.0,0.02261795]
[1724241801321,0.208922,59463.0,59462.0,0.02261795]
[1724241801525,0.119022,59463.0,59462.0,0.02261795]
[1724241801933,0.287193,59463.0,59462.0,0.02261795]
[1724241802357,0.119022,59463.0,59462.0,0.02261795]
[1724241803602,0.000822,59463.0,59462.0,0.02261795]
[1724241804839,0.000822,59463.0,59462.0,0.38472093]
[1724241805052,0.000822,59463.0,59462.0,0.46027546]
[1724241805285,0.000822,59463.0,59462.0,0.83316759]
[1724241805726,0.000822,59463.0,59462.0,0.85735244]
[1724241805971,0.000822,59463.0,59462.0,0.75760044]
[1724241806208,0.001822,59463.0,59462.0,0.89052586]
[1724241806417,0.001822,59463.0,59462.0,0.89053063]
[1724241806849,0.001822,59463.0,59462.0,0.89653063]
[1724241807060,0.002822,59463.0,59462.0,0.89653063]
[1724241808174,0.002822,59463.0,59462.0,0.77059697]
[1724241808587,0.002822,59463.0,59462.0,0.77359697]
[1724241810572,0.002822,59463.0,59462.0,0.77059697]
[1724241810795,0.002822,59463.0,59462.0,0.89657748]
[1724241811003,0.002822,59463.0,59462.0,0.89657961]
[1724241811980,0.002822,59463.0,59462.0,0.89632061]
[1724241812160,0.002822,59463.0,59462.0,0.89631596]
[1724241813399,0.002822,59463.0,59462.0,0.77034074]
[1724241814977,0.002822,59463.0,59462.0,0.89631596]
[1724241815590,0.002822,59463.0,59462.0,0.77034707]
[1724241816336,0.002822,59463.0,59462.0,0.89632286]
[1724241816532,0.002822,59463.0,59462.0,0.77034707]
[1724241817378,0.002822,59463.0,59462.0,0.89632286]
[1724241818430,0.002822,59463.0,59462.0,0.8711296]
[1724241818604,0.002822,59463.0,59462.0,0.77034707]
[1724241819681,0.002822,59463.0,59462.0,0.39746193]
[1724241820067,0.002822,59463.0,59462.0,0.77034861]
[1724241820286,0.002822,59463.0,59462.0,0.77034843]
[1724241820457,0.002822,59463.0,59462.0,0.76122933]
[1724241821028,0.002822,59463.0,59462.0,0.66044843]
[1724241821231,0.002822,59463.0,59462.0,0.78641679]
[1724241822648,0.002822,59463.0,59462.0,0.90381679]
[1724241827673,0.002822,59463.0,59462.0,0.87863732]
[1724241828250,0.002822,59463.0,59462.0,0.98653732]
[1724241828465,0.002822,59463.0,59462.0,0.98753732]
[1724241828823,0.002822,59463.0,59462.0,0.88674843]
[1724241828982,0.002822,59463.0,59462.0,0.88574843]
[1724241829328,0.002822,59463.0,59462.0,0.88674843]
[1724241829551,0.002822,59463.0,59462.0,0.88574843]
[1724241829885,0.002822,59463.0,59462.0,0.88573901]
[1724241830450,0.002822,59463.0,59462.0,0.88573854]
[1724241832059,0.002822,59463.0,59462.0,0.88673854]
[1724241834429,0.002822,59463.0,59462.0,0.88573854]
[1724241835451,0.002822,59463.0,59462.0,0.77783854]
[1724241835684,0.002822,59463.0,59462.0,0.67303024]
[1724241836383,0.00261959,59463.0,59462.0,0.57223854]
[1724241839093,0.00261959,59463.0,59462.0,0.57198061]
[1724241839945,0.00261959,59463.0,59462.0,0.57200015]
[1724241842823,0.00261959,59463.0,59462.0,0.40799717]
[1724241843256,0.00261959,59463.0,59462.0,0.50879205]
[1724241845615,0.00261959,59463.0,59462.0,0.62619205]
[1724241846044,0.00261959,59463.0,59462.0,0.63881921]
[1724241846247,0.00261959,59463.0,59462.0,0.53802433]
[1724241846664,0.00261959,59463.0,59462.0,0.90362731]
[1724241847913,0.00261959,59463.0,59462.0,0.90360756]
[1724241848940,0.00261959,59463.0,59462.0,0.90335106]
[1724241849157,0.00261959,59463.0,59462.0,0.8907239]
[1724241849371,0.00261959,59463.0,59462.0,0.90335046]
[1724241850054,0.00261959,59463.0,59462.0,0.90335048]
[1724241850259,0.00261959,59463.0,59462.0,1.05469128]
[1724241852141,0.00261959,59463.0,59462.0,0.90335048]
[1724241853392,0.00261959,59463.0,59462.0,1.04215157]
[1724241853595,0.00261959,59463.0,59462.0,1.05477827]
[1724241853802,0.00261959,59463.0,59462.0,0.9033506]
[1724241854430,0.00261959,59463.0,59462.0,1.05477827]
[1724241857219,0.00261959,59463.0,59462.0,1.05478531]
[1724241858088,0.00261959,59463.0,59462.0,0.90335218]
[1724241858322,0.00261959,59463.0,59462.0,1.05478531]
[1724241860233,0.00261959,59463.0,59462.0,1.04215861]
[1724241860444,0.00261959,59463.0,59462.0,1.05478509]
[1724241860657,0.00261959,59463.0,59462.0,0.90335196]
[1724241860878,0.00261959,59463.0,59462.0,1.05478513]
[1724241861728,0.00261959,59463.0,59462.0,1.05478886]
[1724241861934,0.00261959,59463.0,59462.0,0.79255544]
[1724241863003,0.00261959,59463.0,59462.0,0.79255856]
[1724241863868,0.00261959,59463.0,59462.0,0.58435856]
[1724241865184,0.00261959,59463.0,59462.0,0.70175856]
[1724241866459,0.00261959,59463.0,59462.0,0.70176197]
[1724241866871,0.00261959,59463.0,59462.0,0.7017622]
[1724241867500,0.00261959,59463.0,59462.0,0.70132667]
[1724241867701,0.00261959,59463.0,59462.0,0.69385044]
[1724241868325,0.00261959,59463.0,59462.0,0.70647733]
[1724241871096,0.00261959,59463.0,59462.0,0.70646869]
[1724241871527,0.00261959,59463.0,59462.0,0.70737289]
[1724241875610,0.00261959,59463.0,59462.0,0.85880589]
[1724241875816,0.00261959,59463.0,59462.0,0.85880672]
[1724241877807,0.00261959,59463.0,59462.0,0.85880844]
[1724241878868,0.00261959,59463.0,59462.0,0.8588096]
[1724241880340,0.00261959,59463.0,59462.0,0.86716247]
[1724241880597,0.00261959,59463.0,59462.0,0.86716391]
[1724241884936,0.00261959,59463.0,59462.0,0.94356391]
[1724241885145,0.00261959,59463.0,59462.0,1.42606041]
[1724241885359,0.02718573,59466.0,59465.0,0.1474]
[1724241885592,0.02718573,59466.0,59465.0,1.42252443]
[1724241885809,0.02718573,59466.0,59465.0,1.14024965]
[1724241886663,0.02718573,59466.0,59465.0,1.02784965]
[1724241886877,0.02718573,59466.0,59465.0,1.29661342]
[1724241887091,0.02718573,59466.0,59465.0,1.14824965]
[1724241887893,0.02718573,59466.0,59465.0,1.29961342]
[1724241888774,0.20018573,59466.0,59465.0,0.45734667]
[1724241888992,0.20018573,59466.0,59465.0,0.58348906]
[1724241889237,0.20018573,59466.0,59465.0,0.44471999]
[1724241889448,0.20018573,59466.0,59465.0,0.49040889]
[1724241890078,0.20018573,59466.0,59465.0,0.41471999]
[1724241891112,0.20018573,59466.0,59465.0,0.40624327]
[1724241891966,0.19518573,59466.0,59465.0,0.40624327]
[1724241892366,0.173,59466.0,59465.0,0.08386807]
[1724241894950,0.1082,59468.0,59467.0,0.39831812]
[1724241895204,0.02718572,59469.0,59467.0,0.39831812]
[1724241895455,0.02718572,59469.0,59468.0,0.07567778]
[1724241895789,0.02718572,59469.0,59468.0,0.44856149]
[1724241896221,0.02718572,59469.0,59468.0,0.98923663]
[1724241896465,0.000822,59469.0,59468.0,1.01033258]
[1724241896744,0.000822,59469.0,59468.0,0.88419019]
[1724241898208,0.000822,59469.0,59468.0,0.88919019]
[1724241899199,0.000822,59469.0,59468.0,0.88915747]
[1724241899973,0.001822,59469.0,59468.0,0.89615747]
[1724241900180,0.001822,59469.0,59468.0,0.79165747]
[1724241900387,0.001822,59469.0,59468.0,0.55745856]
[1724241900596,0.001822,59469.0,59468.0,0.53223737]
[1724241900860,0.001822,59469.0,59468.0,0.43135399]
[1724241901489,0.001822,59469.0,59468.0,0.72653633]
[1724241901692,0.001822,59469.0,59468.0,0.62565399]
[1724241901893,0.001822,59469.0,59468.0,0.72855399]
[1724241902102,0.001822,59469.0,59468.0,0.85465671]
[1724241902308,0.001822,59469.0,59468.0,0.72855399]
[1724241902930,0.001822,59469.0,59468.0,0.89255697]
[1724241903390,0.001822,59469.0,59468.0,1.09255697]
[1724241904201,0.001822,59469.0,59468.0,1.0799307]
[1724241904414,0.001822,59469.0,59468.0,1.09255523]
[1724241904624,0.000822,59472.0,59471.0,0.031]
[1724241904831,0.000822,59472.0,59471.0,1.3906874]
[1724241905046,0.000822,59472.0,59471.0,1.98418042]
[1724241905256,0.000822,59472.0,59471.0,1.98417874]
[1724241905463,0.000822,59472.0,59471.0,1.76283658]
[1724241906083,0.000822,59472.0,59471.0,1.42653858]
[1724241906503,0.000822,59472.0,59471.0,2.84434558]
[1724241906707,0.001822,59472.0,59471.0,2.85834558]
[1724241906918,0.001822,59472.0,59471.0,2.74511477]
[1724241907157,0.000822,59472.0,59471.0,2.21904187]
[1724241907340,0.001822,59472.0,59471.0,2.34015762]
[1724241907542,0.001822,59472.0,59471.0,2.25336762]
[1724241907745,0.001822,59472.0,59471.0,3.74436762]
[1724241907954,0.002822,59472.0,59471.0,3.75836762]
[1724241908157,0.002822,59472.0,59471.0,3.76236762]
[1724241908360,0.001822,59472.0,59471.0,3.84343162]
[1724241908561,0.000822,59472.0,59471.0,3.83643162]
[1724241908769,0.000822,59472.0,59471.0,1.02873762]
[1724241908978,0.000822,59472.0,59471.0,1.14613762]
[1724241909395,0.000822,59472.0,59471.0,1.13213748]
[1724241909814,0.001822,59472.0,59471.0,1.14613748]
[1724241910023,0.001822,59472.0,59471.0,1.15913748]
[1724241910233,0.001822,59472.0,59471.0,0.82623748]
[1724241910441,0.001822,59472.0,59471.0,0.93101477]
[1724241910653,0.001822,59472.0,59471.0,0.82623748]
[1724241910864,0.001822,59472.0,59471.0,0.93101477]
[1724241911324,0.002822,59472.0,59471.0,0.93101477]
[1724241911535,0.001822,59472.0,59471.0,0.91701477]
[1724241911749,0.001822,59472.0,59471.0,0.90301477]
[1724241911951,0.000822,59472.0,59471.0,0.90301477]
[1724241912160,0.001822,59472.0,59471.0,0.91701477]
[1724241912767,0.001822,59472.0,59471.0,0.93101477]
[1724241912968,0.002822,59472.0,59471.0,0.93101477]
[1724241914052,0.002822,59472.0,59471.0,0.94463748]
[1724241914290,0.002822,59472.0,59471.0,1.31766377]
[1724241914950,0.002822,59472.0,59471.0,1.33028648]
[1724241915160,0.002822,59472.0,59471.0,1.66658448]
[1724241915802,0.002822,59472.0,59471.0,1.66358448]
[1724241916021,0.002822,59472.0,59471.0,1.32828648]
[1724241916641,0.002822,59472.0,59471.0,1.32828696]
[1724241916853,0.002822,59472.0,59471.0,1.33028696]
[1724241917489,0.002822,59472.0,59471.0,1.666585]
[1724241917692,0.002822,59472.0,59471.0,2.104883]
[1724241918565,0.002822,59472.0,59471.0,2.25589574]
[1724241918981,0.002822,59472.0,59471.0,2.127883]
[1724241919629,0.000822,59479.0,59471.0,2.127883]
[1724241919870,0.000822,59479.0,59478.0,0.24900113]
[1724241920091,0.000822,59479.0,59478.0,0.59110411]
[1724241920303,0.000822,59479.0,59478.0,0.9976988]
[1724241920514,0.000822,59479.0,59478.0,0.9946988]
[1724241920733,0.000822,59479.0,59478.0,0.7011988]
[1724241920949,0.001822,59479.0,59478.0,0.79344879]
[1724241921397,0.001822,59479.0,59478.0,0.42068292]
[1724241921816,0.001822,59479.0,59478.0,0.43168292]
[1724241922273,0.002822,59479.0,59478.0,0.44068292]
[1724241922716,0.002822,59479.0,59478.0,0.41553191]
[1724241922929,0.002822,59479.0,59478.0,0.36523874]
[1724241923353,0.101822,59479.0,59478.0,0.24783874]
[1724241923776,0.12817919,59479.0,59478.0,0.24783874]
[1724241925017,0.02917919,59479.0,59478.0,0.24783874]
[1724241925224,0.02917919,59479.0,59478.0,0.32423874]
[1724241926532,0.02917919,59479.0,59478.0,0.37453648]
[1724241926740,0.02917919,59479.0,59478.0,0.32423874]
[1724241927773,0.02917919,59479.0,59478.0,0.33686166]
[1724241927976,0.02917919,59479.0,59478.0,0.32423874]
[1724241930118,0.002822,59479.0,59478.0,0.32423874]
[1724241930328,0.002822,59479.0,59478.0,0.37453648]
[1724241930741,0.002822,59479.0,59478.0,0.38715985]
[1724241930925,0.002822,59479.0,59478.0,0.33686211]
[1724241931306,0.002822,59479.0,59478.0,0.32423874]
[1724241931511,0.002822,59479.0,59478.0,0.33686198]
[1724241931723,0.002822,59479.0,59478.0,0.4123086]
[1724241932085,0.002822,59479.0,59478.0,0.77154703]
[1724241932496,0.002822,59479.0,59478.0,0.69610041]
[1724241932718,0.102722,59479.0,59478.0,0.24692469]
[1724241933273,0.12907992,59479.0,59478.0,0.24692469]
[1724241933689,0.12907992,59479.0,59478.0,0.05292227]
[1724241933943,0.3462829,59479.0,59478.0,0.04029847]
[1724241934140,1.1869149,59479.0,59478.0,0.04029847]
[1724241934367,1.5231679,59479.0,59478.0,0.02]
[1724241934719,1.5231679,59479.0,59478.0,0.011]
[1724241934720,1.5221679,59479.0,59478.0,0.011]
[1724241934921,1.35816492,59479.0,59478.0,0.011]
[1724241935124,1.13931192,59479.0,59478.0,0.015]
[1724241935502,1.13931192,59479.0,59478.0,0.011]
[1724241936098,0.1455,59470.0,59469.0,0.0009042]
[1724241936759,0.1718628,59470.0,59469.0,0.0009042]
[1724241937219,0.1186628,59470.0,59469.0,0.0009042]
[1724241937860,0.1296628,59470.0,59469.0,0.02222342]
[1724241938067,0.1296628,59470.0,59469.0,0.0019042]
[1724241938288,0.1236628,59470.0,59469.0,0.0009042]
[1724241938693,0.1256628,59470.0,59469.0,0.0009042]
[1724241939106,0.1206628,59470.0,59469.0,0.0009042]
[1724241940137,0.1206628,59470.0,59469.0,0.0019042]
[1724241940345,0.1186628,59470.0,59469.0,0.0019042]
[1724241940547,0.1196628,59470.0,59469.0,0.0019042]
[1724241941771,0.1196628,59470.0,59469.0,0.0303511]
[1724241942181,0.1186628,59470.0,59469.0,0.0293511]
[1724241942585,0.1186628,59470.0,59469.0,0.0313511]
[1724241943441,0.0263628,59470.0,59469.0,0.0293511]
[1724241943852,0.0263628,59470.0,59469.0,0.0313511]
[1724241944054,0.0263628,59470.0,59469.0,0.0293511]
[1724241945488,0.0263628,59470.0,59469.0,0.0313511]
[1724241945833,0.0263628,59470.0,59469.0,0.0293511]
[1724241946040,0.0263628,59470.0,59469.0,0.0323511]
[1724241946799,0.0263628,59470.0,59469.0,0.0293511]
[1724241947253,0.0263628,59470.0,59469.0,0.0333511]
[1724241947446,0.0263628,59470.0,59469.0,0.0343511]
[1724241947634,0.0263628,59470.0,59469.0,0.0333511]
[1724241948062,0.0263628,59470.0,59469.0,0.0363511]
[1724241954187,0.0263628,59470.0,59469.0,0.2054511]
[1724241958513,0.0263628,59470.0,59469.0,0.3228511]
[1724241960473,0.0263628,59470.0,59469.0,0.49021697]
[1724241960881,0.0263628,59470.0,59469.0,0.71793308]
[1724241961075,0.000822,59472.0,59470.0,0.168151]
[1724241961273,0.000822,59472.0,59471.0,0.33910298]
[1724241961474,0.000822,59472.0,59471.0,0.36779943]
[1724241961884,0.000822,59472.0,59471.0,0.38042614]
[1724241962090,0.000822,59472.0,59471.0,0.36779943]
[1724241962291,0.000822,59472.0,59471.0,0.38042614]
[1724241962894,0.000822,59472.0,59471.0,0.38242614]
[1724241963529,0.000822,59472.0,59471.0,0.38242443]
[1724241964783,0.02718223,59472.0,59471.0,0.38242443]
[1724241966843,0.02718223,59472.0,59471.0,0.42009772]
[1724241967043,0.02718223,59472.0,59471.0,0.38242414]
[1724241967274,0.02718223,59472.0,59471.0,0.45787158]
[1724241967476,0.02718223,59472.0,59471.0,0.755243]
[1724241967629,0.02718223,59472.0,59471.0,0.85583959]
[1724241968054,0.02718223,59472.0,59471.0,0.755243]
[1724241968346,0.02718223,59472.0,59471.0,0.88098874]
[1724241968509,0.02718223,59472.0,59471.0,0.85590225]
[1724241968709,0.02718223,59472.0,59471.0,0.85590311]
[1724241969333,0.02718223,59472.0,59471.0,0.83074193]
[1724241969800,0.02718223,59472.0,59471.0,0.83074515]
[1724241970183,0.02718223,59472.0,59471.0,0.81812044]
[1724241970384,0.02718223,59472.0,59471.0,0.83074497]
[1724241970607,0.02718223,59472.0,59471.0,0.68894199]
[1724241970812,0.02718223,59472.0,59471.0,0.24062098]
[1724241971013,0.02718223,59472.0,59471.0,0.29096035]
[1724241971229,0.02718223,59472.0,59471.0,0.27833582]
[1724241971384,0.02718223,59472.0,59471.0,0.29096035]
[1724241972803,0.000822,59472.0,59471.0,0.24062098]
[1724241973045,0.000822,59472.0,59471.0,0.50192396]
[1724241973248,0.000822,59472.0,59471.0,0.97541543]
[1724241973579,0.000822,59472.0,59471.0,0.95026877]
[1724241974793,0.0271816,59472.0,59471.0,0.95026877]
[1724241975000,0.0271816,59472.0,59471.0,0.87474516]
[1724241975201,0.0271816,59472.0,59471.0,0.97541543]
[1724241975590,0.000822,59472.0,59471.0,0.97541543]
[1724241976895,0.000822,59472.0,59471.0,0.9754154]
[1724241977307,0.000822,59472.0,59471.0,0.87474513]
[1724241978327,0.000822,59472.0,59471.0,1.00058297]
[1724241978953,0.000822,59472.0,59471.0,1.00069615]
[1724241981413,0.000822,59472.0,59471.0,1.00069612]
[1724241982060,0.000822,59472.0,59471.0,1.38218796]
[1724241982189,0.000822,59479.0,59478.0,0.3243]
[1724241982401,0.000822,59479.0,59478.0,1.02835882]
[1724241983391,0.000822,59479.0,59478.0,1.02835739]
[1724241983593,0.000822,59479.0,59478.0,1.02829418]
[1724241983880,0.02817971,59479.0,59478.0,1.04029418]
[1724241984489,0.02817971,59479.0,59478.0,1.02767114]
[1724241984920,0.02817971,59479.0,59478.0,1.04029415]
[1724241985276,0.02917971,59479.0,59478.0,1.05029415]
[1724241985689,0.02917971,59479.0,59478.0,0.92435446]
[1724241986088,0.02917971,59479.0,59478.0,1.05029415]
[1724241986307,0.002822,59479.0,59478.0,1.05026094]
[1724241986459,0.002822,59479.0,59478.0,0.92435446]
[1724241987958,0.002822,59479.0,59478.0,0.9243537]
[1724241989600,0.002822,59479.0,59478.0,0.92435374]
[1724241990422,0.002822,59479.0,59478.0,1.09548274]
[1724241990626,0.002822,59479.0,59478.0,1.76799874]
[1724241991381,0.002822,59479.0,59478.0,1.75537645]
[1724241991775,0.002822,59479.0,59478.0,1.95537645]
[1724241992178,0.002822,59479.0,59478.0,1.95237645]
[1724241992382,0.002822,59479.0,59478.0,1.96499863]
[1724241994142,0.002822,59479.0,59478.0,1.96799863]
[1724241994382,0.002822,59479.0,59478.0,1.96899863]
[1724241994665,0.002822,59479.0,59478.0,1.96599863]
[1724241994814,0.00822,59488.0,59485.0,0.03]
[1724241994994,0.00822,59488.0,59485.0,0.5065173]
[1724241995195,0.089922,59486.0,59485.0,0.81396843]
[1724241995399,0.089922,59486.0,59485.0,0.80145565]
[1724241995601,0.089922,59486.0,59485.0,0.34060518]
[1724241996033,0.089922,59486.0,59485.0,0.34360518]
[1724241996234,0.089922,59486.0,59485.0,0.41906016]
[1724241996445,0.089922,59486.0,59485.0,0.42306016]
[1724241997120,0.089922,59486.0,59485.0,0.42305376]
[1724241997320,0.089922,59486.0,59485.0,0.79578627]
[1724241997555,0.089922,59486.0,59485.0,0.0662022]
[1724241998589,0.089922,59486.0,59485.0,0.0362022]
[1724241998793,0.134722,59486.0,59485.0,0.0362022]
[1724241999432,0.089922,59486.0,59485.0,0.007]
[1724241999606,0.089922,59486.0,59485.0,0.031311]
[1724242005644,0.000822,59486.0,59485.0,0.031311]
[1724242011212,0.000822,59486.0,59485.0,0.204311]
[1724242011617,0.000822,59486.0,59485.0,0.66521811]
[1724242011818,0.000822,59486.0,59485.0,0.58968399]
[1724242011994,0.000822,59486.0,59485.0,0.75368596]
[1724242012555,0.000822,59486.0,59485.0,0.85439812]
[1724242013147,0.000822,59486.0,59485.0,0.75368596]
[1724242013362,0.000822,59486.0,59485.0,0.82921952]
[1724242013901,0.000822,59486.0,59485.0,0.829214]
[1724242014182,0.000822,59486.0,59485.0,0.82921818]
[1724242014335,0.000822,59486.0,59485.0,0.45646938]
[1724242014537,0.000822,59486.0,59485.0,0.82922276]
[1724242014756,0.000822,59486.0,59485.0,0.45647441]
[1724242014961,0.000822,59486.0,59485.0,0.20793582]
[1724242015163,0.000822,59486.0,59485.0,0.25829662]
[1724242015411,0.000822,59486.0,59485.0,0.19531398]
[1724242016116,0.000822,59486.0,59485.0,0.20793667]
[1724242016326,0.000822,59486.0,59485.0,0.25829747]
[1724242016680,0.000822,59486.0,59485.0,0.09429449]
[1724242016853,0.000822,59486.0,59485.0,0.09429872]
[1724242017287,0.000822,59486.0,59485.0,0.031311]
[1724242017515,0.094022,59486.0,59485.0,0.031311]
[1724242018512,0.094022,59486.0,59485.0,0.08167603]
[1724242019076,0.979354,59486.0,59485.0,0.031311]
[1724242019462,0.979354,59486.0,59485.0,0.007]
[1724242020926,0.168115,59483.0,59482.0,0.00020238]
[1724242021170,0.644145,59483.0,59482.0,0.00020238]
[1724242021544,0.67050449,59483.0,59482.0,0.00020238]
[1724242022119,0.33427449,59483.0,59482.0,0.00020238]
[1724242023413,0.12135949,59483.0,59482.0,0.00020238]
[1724242023834,0.12135949,59483.0,59482.0,0.00220238]
[1724242025992,0.02635949,59483.0,59482.0,0.00220238]
[1724242026422,0.02635949,59483.0,59482.0,0.02655983]
[1724242027519,0.02635949,59483.0,59482.0,0.00220238]
[1724242027520,0.16775949,59483.0,59482.0,0.00220238]
[1724242027726,0.33587449,59483.0,59482.0,0.00220238]
[1724242028370,0.67210449,59483.0,59482.0,0.00220238]
[1724242030254,0.33587449,59483.0,59482.0,0.00220238]
[1724242030669,0.67210449,59483.0,59482.0,0.00220238]
[1724242032137,0.12295949,59483.0,59482.0,0.00220238]
[1724242032342,0.33597449,59483.0,59482.0,0.00220238]
[1724242032548,0.33597449,59483.0,59482.0,0.02655986]
[1724242032753,0.33597449,59483.0,59482.0,0.00220238]
[1724242033130,0.33597449,59483.0,59482.0,0.002]